[Event "WSTCC-50 2024"]
[Site "Krakow"]
[Date "2024.07.05"]
[Round "4.12"]
[White "Tsodikova, Natalia"]
[Black "Koganov, Mikhail"]
[Result "0-1"]
[ECO "B07"]
[WhiteElo "2019"]
[BlackElo "2177"]
[Annotator "RC"]
[PlyCount "52"]
[EventDate "2024.07.01"]
[EventType "team-tourn"]
[EventCountry "POL"]
[SourceTitle "playchess.com"]
[Source "ChessBase"]
[SourceQuality "1"]
[TimeControl "40/5400+30:1800+30"]

1. e4 {[%emt 0:00:05]} d6 {[%emt 0:00:11]} 2. d4 {[%emt 0:00:24]} Nf6 {[%emt 0:00:05]} 3. Nc3 {[%emt 0:00:20]} c6 {[%emt 0:00:05]} 4. a4 {[%emt 0:02:03]} Qa5 {[%emt 0:02:20]} 5. Bd2 {[%emt 0:09:34]} Qc7 {[%emt 0:01:28]} 6. h3 {[%emt 0:03:04]} e5 {[%emt 0:00:49]} 7. Nf3 {[%emt 0:01:01]} Be7 {[%emt 0:00:13]} 8. dxe5 {[%emt 0:02:36]} dxe5 {[%emt 0:00:10]} 9. Bc4 {[%emt 0:00:45]} O-O {[%emt 0:00:41]} 10. Qe2 {[%emt 0:02:50]} a5 {[%emt 0:03:41]} 11. g4 {[%emt 0:09:02]} Nfd7 {[%emt 0:06:40]} 12. Nd1 {[%emt 0:08:10]} Nc5 {[%emt 0:02:00]} 13. Bc3 {[%emt 0:12:35]} Bd6 {[%emt 0:01:27]} 14. Nd2 {[%emt 0:02:17]} Ne6 {[%emt 0:02:08]} 15. Bxe6 {[%emt 0:00:22]} fxe6 {[%emt 0:04:40]} 16. Ne3 {[%emt 0:01:20]} b6 {[%emt 0:00:54]} 17. Ndc4 {[%emt 0:01:53]} Bb4 {[%emt 0:00:32]} 18. Bxb4 {[%emt 0:01:22]} axb4 {[%emt 0:00:02]} 19. b3 {[%emt 0:02:23]} c5 {[%emt 0:00:45]} 20. c3 {[%emt 0:04:56]} b5 {[%emt 0:01:09]} 21. cxb4 {[%emt 0:01:19]} bxc4 {[%emt 0:06:20]} 22. Qxc4 {[%emt 0:05:43]} Qf7 {[%emt 0:01:26]} 23. Ra2 {[%emt 0:03:49]} cxb4 {[%emt 0:00:11]} 24. Qxb4 {[%emt 0:00:57]} Nc6 {[%emt 0:00:25]} 25. Qc5 {[%emt 0:01:14]} Nd4 {[%emt 0:00:46]} 26. Nc4 {[%emt 0:01:33]} Qf3 {[%emt 0:00:33]} 0-1

[Event "WSTCC-50 2024"]
[Site "Krakow"]
[Date "2024.07.05"]
[Round "4.12"]
[White "O`Dwyer, Fergal"]
[Black "Kozma, Edit"]
[Result "1/2-1/2"]
[ECO "B52"]
[WhiteElo "1935"]
[BlackElo "1859"]
[Annotator "NA RC"]
[PlyCount "35"]
[EventDate "2024.07.01"]
[EventType "team-tourn"]
[EventCountry "POL"]
[SourceTitle "playchess.com"]
[Source "ChessBase"]
[SourceQuality "1"]
[TimeControl "40/5400+30:1800+30"]

1. e4 {[%emt 0:00:33]} c5 {[%emt 0:00:14]} 2. Nf3 {[%emt 0:00:30]} d6 {[%emt 0:00:18]} 3. Bb5+ {[%emt 0:00:46]} Bd7 {[%emt 0:00:42]} 4. c4 {[%emt 0:01:10]} Nf6 {[%emt 0:00:54]} 5. Nc3 {[%emt 0:01:07]} g6 {[%emt 0:09:44]} 6. O-O {[%emt 0:05:43]} Bg7 {[%emt 0:00:13]} 7. d4 {[%emt 0:08:15]} cxd4 {[%emt 0:00:35]} 8. Nxd4 {[%emt 0:03:40]} O-O {[%emt 0:00:40]} 9. f3 {[%emt 0:09:53]} Nc6 {[%emt 0:09:11]} 10. Bxc6 {[%emt 0:05:59]} bxc6 {[%emt 0:03:08]} 11. Be3 {[%emt 0:02:56]} Qa5 {[%emt 0:09:33]} 12. Qd2 {[%emt 0:06:35]} Qb4 {[%emt 0:08:10]} 13. Rac1 {[%emt 0:18:14]} Rab8 {[%emt 0:11:00]} 14. b3 {[%emt 0:07:17]} Rfc8 {[%emt 0:05:42]} 15. Nde2 {[%emt 0:07:02]} Qb7 {[%emt 0:01:29]} 16. Rfd1 {[%emt 0:00:53]} c5 {[%emt 0:06:25]} 17. Bh6 {[%emt 0:06:04]} Bh8 {[%emt 0:04:18]} 18. Bg5 1/2-1/2

[Event "WSTCC-50 2024"]
[Site "Krakow"]
[Date "2024.07.05"]
[Round "4.12"]
[White "Thomas, Gary"]
[Black "Findlay, Ian T."]
[Result "1-0"]
[ECO "B20"]
[WhiteElo "1865"]
[BlackElo "2118"]
[Annotator "NA RC"]
[PlyCount "29"]
[EventDate "2024.07.01"]
[EventType "team-tourn"]
[EventCountry "POL"]
[SourceTitle "playchess.com"]
[Source "ChessBase"]
[SourceQuality "1"]
[TimeControl "40/5400+30:1800+30"]

1. e4 {[%emt 0:00:05]} c5 {[%emt 0:00:07]} 2. b4 {[%emt 0:00:09]} cxb4 {[%emt 0:01:26]} 3. d4 {[%emt 0:00:08]} d5 {[%emt 0:01:35]} 4. exd5 {[%emt 0:00:09]} Qxd5 {[%emt 0:05:57]} 5. c4 {[%emt 0:00:13]} bxc3 {[%emt 0:03:41]} 6. Nxc3 {[%emt 0:00:11]} Qd8 {[%emt 0:00:08]} 7. Bb5+ {[%emt 0:01:00]} Bd7 {[%emt 0:03:25]} 8. Rb1 {[%emt 0:00:41]} Nf6 {[%emt 0:18:58]} 9. Nf3 {[%emt 0:00:17]} e6 {[%emt 0:00:10]} 10. O-O {[%emt 0:00:51]} Be7 {[%emt 0:01:34]} 11. d5 {[%emt 0:04:43]} O-O {[%emt 0:08:57]} 12. d6 {[%emt 0:03:07]} Bxb5 {[%emt 0:00:16]} 13. dxe7 {[%emt 0:00:32]} Qxe7 {[%emt 0:00:08]} 14. Nxb5 {[%emt 0:01:22]} Nc6 {[%emt 0:00:08]} 15. Ba3 {[%emt 0:01:11]} 1-0

[Event "WSTCC-50 2024"]
[Site "Krakow"]
[Date "2024.07.05"]
[Round "4.13"]
[White "Mrva, Martin"]
[Black "Dahl, Fredrik A"]
[Result "1-0"]
[ECO "C24"]
[WhiteElo "2361"]
[BlackElo "2237"]
[Annotator "TA"]
[PlyCount "64"]
[EventDate "2024.07.01"]
[EventType "team-tourn"]
[EventCountry "POL"]
[SourceTitle "playchess.com"]
[Source "ChessBase"]
[SourceQuality "1"]
[TimeControl "40/5400+30:1800+30"]

{[%evp 9,64,23,2,-6,25,8,17,18,16,-11,29,0,47,50,36,30,29,16,23,-44,32,25,29,25,23,25,54,62,54,63,66,39,47,0,52,55,38,42,88,80,670,660,664,679,663,650,652,498,464,505,1376,1194,1272,1274,2997,2232,2152]} 1. e4 {[%emt 0:00:04]} e5 {[%emt 0:00:05]} 2. Bc4 {[%emt 0:00:13]} Nf6 {[%emt 0:00:23]} 3. d3 {[%emt 0:00:06]} c6 {[%emt 0:00:32]} 4. Nf3 {[%emt 0:00:17]} d5 {[%emt 0:00:57]} 5. Bb3 {[%emt 0:00:06]} Bb4+ {[%emt 0:01:33]} 6. Nbd2 {[%emt 0:09:54]} Bd6 {[%emt 0:01:21]} 7. d4 {[%emt 0:11:08]} dxe4 {[%emt 0:07:53]} 8. Nxe5 {[%emt 0:15:07] Die Stellung ist ausgeglichen.} O-O {[%emt 0:02:55]} 9. Qe2 {[%emt 0:01:31]} Bf5 {[%emt 0:02:57]} 10. h3 {[%emt 0:05:46]} h6 {[%emt 0:19:11]} (10... c5 $11 {war vorzuziehen.} 11. g4 Be6 12. Bxe6 (12. Nxe4 $2 Bxb3 13. axb3 Nxe4 $17) 12... fxe6 13. Nxe4 cxd4) 11. g4 $14 {[%emt 0:04:36]} Bh7 {[%emt 0:00:12]} 12. h4 {[%emt 0:01:12]} Nbd7 {[%emt 0:08:27]} 13. Ndc4 {[%emt 0:02:59]} Bxe5 {[%emt 0:02:27]} 14. dxe5 {[%emt 0:00:29] [#]} (14. Nxe5 $11 Nxe5 15. dxe5) 14... Nxe5 $1 {[%emt 0:00:30]} 15. Nxe5 {[%emt 0:10:51]} Qa5+ {[%emt 0:00:10]} 16. Bd2 {[%emt 0:01:37]} Qxe5 {[%emt 0:00:08]} 17. O-O-O {[%emt 0:00:11] Und g5 würde nun gewinnen.} Nd5 {[%emt 0:06:06]} 18. g5 $36 {[%emt 0:03:08][%mdl 2048] Weiss hat Druck.} h5 {[%emt 0:08:38]} 19. Qxh5 {[%emt 0:01:48]} a5 {[%emt 0:00:36][%cal Ba7a5,Ba5a4][%mdl 32]} 20. a3 {[%emt 0:05:37]} a4 {[%emt 0:00:29]} 21. Ba2 {[%emt 0:00:05]} (21. Bxd5 $14 Qxd5 22. Bb4) 21... e3 {[%emt 0:09:12]} ({Vorzuziehen ist} 21... b5 $11 22. Bxd5 Qxd5) 22. fxe3 {[%emt 0:02:33]} Qe4 {[%emt 0:04:11][%csl Gh7][%cal Re4c2] Gegen Qg4 gerichtet.} 23. Kb1 {[%emt 0:00:48]} Ra6 {[%emt 0:02:47]} (23... Nxe3 $2 {zu gefräßig.} 24. Bxe3 Rae8 25. Rde1 $18 (25. g6 Bxg6 26. Qg5 Re5 $18)) (23... Qxc2+ 24. Ka1 Bg6 25. Qe2 $16) (23... Bf5 $14 {kam in Betracht.} 24. Qe2 Qxc2+ 25. Ka1 Qe4) 24. Ka1 {[%emt 0:02:46]} Qxc2 $2 {[%emt 0:06:06][%mdl 8192] Führt Schwarz ins Verderben.} (24... Rb6 $16) 25. Bb1 $18 {[%emt 0:03:37] Weiß steht klar auf Gewinn.} Bg6 {[%emt 0:00:23]} 26. Qg4 {[%emt 0:00:27]} (26. Qxg6 Qxg6 27. Bxg6 fxg6 $16) 26... Qb3 {[%emt 0:00:31] Und jetzt ...Rb6 wäre schön.} 27. Bxg6 {[%emt 0:04:04][%cal Od1f1] Rdf1! wäre nun fies.} fxg6 {[%emt 0:00:06]} 28. Qe6+ {[%emt 0:00:17]} Rf7 {[%emt 0:00:28]} 29. h5 {[%emt 0:06:21]} ({Weniger gut wäre} 29. Qxg6 c5 (29... Rb6 $2 30. Bc1 $18) 30. Qe4 Rd6 $18) 29... Ne7 {[%emt 0:04:28]} (29... Nxe3 $142 30. Qxe3 Qxe3) 30. Qe5 {[%emt 0:00:23] Bb4 ist eine echte Drohung.} Ra8 {[%emt 0:02:18]} 31. Bb4 {[%emt 0:00:54]} gxh5 {[%emt 0:07:13] Schwarz hat schwache schwarze Felder} 32. Bxe7 {[%emt 0:00:20][%cal Og5g6] Beabsichtigt g6! und Matt.} Qc2 {Gewichteter Fehlerwert: Weiß=0.19 (sehr präzise) /Schwarz=0.33.  Verlustzug:     	---       	Schwarz=1     Fehler:       	Weiß=2     	Schwarz=5     Ungenau:       	Weiß=3     	Schwarz=3     OK:         	Weiß=6     	Schwarz=8     Bester:       	Weiß=3     	Schwarz=1} 1-0

[Event "WSTCC-50 2024"]
[Site "Krakow"]
[Date "2024.07.05"]
[Round "4.13"]
[White "Westphal, Wolfgang"]
[Black "Baginskaite, Kamile"]
[Result "0-1"]
[ECO "B50"]
[WhiteElo "2172"]
[BlackElo "2057"]
[Annotator "RC"]
[PlyCount "88"]
[EventDate "2024.07.01"]
[EventType "team-tourn"]
[EventCountry "POL"]
[SourceTitle "playchess.com"]
[Source "ChessBase"]
[SourceQuality "1"]
[TimeControl "40/5400+30:1800+30"]

1. e4 {[%emt 0:00:05]} c5 {[%emt 0:00:07]} 2. Nf3 {[%emt 0:00:08]} d6 {[%emt 0:00:06]} 3. Nc3 {[%emt 0:02:21]} Nf6 {[%emt 0:00:37]} 4. e5 {[%emt 0:00:44]} dxe5 {[%emt 0:02:50]} 5. Nxe5 {[%emt 0:00:53]} Nbd7 {[%emt 0:14:17]} 6. Nc4 {[%emt 0:01:09]} g6 {[%emt 0:13:26]} 7. g3 {[%emt 0:02:07]} Bg7 {[%emt 0:00:47]} 8. Bg2 {[%emt 0:00:07]} O-O {[%emt 0:01:32]} 9. O-O {[%emt 0:00:12]} Nb6 {[%emt 0:07:52]} 10. d3 {[%emt 0:00:07]} Bg4 {[%emt 0:10:01]} 11. Qe1 {[%emt 0:00:18]} Be6 {[%emt 0:07:11]} 12. Nxb6 {[%emt 0:09:16]} Qxb6 {[%emt 0:00:25]} 13. Be3 {[%emt 0:08:57]} Qxb2 {[%emt 0:06:12]} 14. Na4 {[%emt 0:04:57]} Qxc2 {[%emt 0:00:22]} 15. Nxc5 {[%emt 0:00:06]} Bd5 {[%emt 0:00:44]} 16. Bd4 {[%emt 0:11:04]} Bxg2 {[%emt 0:02:25]} 17. Kxg2 {[%emt 0:00:07]} Rfd8 {[%emt 0:00:45]} 18. Rc1 {[%emt 0:19:04]} Qxa2 {[%emt 0:00:16]} 19. Bxf6 {[%emt 0:00:41]} Bxf6 {[%emt 0:00:37]} 20. Nxb7 {[%emt 0:00:25]} Qd5+ {[%emt 0:03:57]} 21. Qe4 {[%emt 0:00:10]} Qxd3 {[%emt 0:00:01]} 22. Nc5 {[%emt 0:00:36]} Qd5 {[%emt 0:01:21]} 23. Rfd1 {[%emt 0:00:38]} Qxe4+ {[%emt 0:00:52]} 24. Nxe4 {[%emt 0:00:07]} Bd4 {[%emt 0:05:33]} 25. Rc7 {[%emt 0:03:00]} Kf8 {[%emt 0:01:07]} 26. Re1 {[%emt 0:00:31]} Rac8 {[%emt 0:01:05]} 27. Rb7 {[%emt 0:00:29]} Rc2 {[%emt 0:01:52]} 28. Kh3 {[%emt 0:03:37]} h6 {[%emt 0:00:36]} 29. g4 {[%emt 0:00:38]} Bxf2 {[%emt 0:02:12]} 30. Nxf2 {[%emt 0:00:36]} Rxf2 {[%emt 0:00:02]} 31. Kg3 {[%emt 0:00:12]} Ra2 {[%emt 0:01:28]} 32. Rbxe7 {[%emt 0:00:43]} Rd3+ {[%emt 0:02:15]} 33. R7e3 {[%emt 0:00:07]} Rxe3+ {[%emt 0:01:21]} 34. Rxe3 {[%emt 0:00:07]} a5 {[%emt 0:00:09]} 35. h4 {[%emt 0:00:09]} a4 {[%emt 0:00:08]} 36. h5 {[%emt 0:00:26]} gxh5 {[%emt 0:01:33]} 37. gxh5 {[%emt 0:00:07]} a3 {[%emt 0:00:03]} 38. Rb3 {[%emt 0:00:21]} Ra1 {[%emt 0:00:15]} 39. Kg2 {[%emt 0:00:07]} a2 {[%emt 0:00:20]} 40. Ra3 {[%emt 0:00:05]} f5 {[%emt 0:01:02]} 41. Kh2 {[%emt 0:31:29]} Kf7 {[%emt 0:30:19]} 42. Ra6 {[%emt 0:00:09]} f4 {[%emt 0:00:17]} 43. Kg2 {[%emt 0:00:09]} f3+ {[%emt 0:00:11]} 44. Kf2 {[%emt 0:00:01]} Rh1 {[%emt 0:00:11]} 0-1

[Event "WSTCC-50 2024"]
[Site "Krakow"]
[Date "2024.07.05"]
[Round "4.13"]
[White "Skibbe, Diana"]
[Black "Bouah, Lyndon"]
[Result "1/2-1/2"]
[ECO "B05"]
[WhiteElo "1942"]
[BlackElo "1996"]
[Annotator "NA RC"]
[PlyCount "24"]
[EventDate "2024.07.01"]
[EventType "team-tourn"]
[EventCountry "POL"]
[SourceTitle "playchess.com"]
[Source "ChessBase"]
[SourceQuality "1"]
[TimeControl "40/5400+30:1800+30"]

1. e4 {[%emt 0:00:02]} Nf6 {[%emt 0:02:29]} 2. e5 {[%emt 0:00:12]} Nd5 {[%emt 0:00:08]} 3. d4 {[%emt 0:00:05]} d6 {[%emt 0:00:08]} 4. Nf3 {[%emt 0:00:23]} Bg4 {[%emt 0:01:06]} 5. Be2 {[%emt 0:00:16]} c6 {[%emt 0:00:32]} 6. c4 {[%emt 0:01:56]} Nb6 {[%emt 0:00:33]} 7. Be3 {[%emt 0:03:50]} Bxf3 {[%emt 0:02:04]} 8. gxf3 {[%emt 0:00:09]} dxe5 {[%emt 0:00:16]} 9. dxe5 {[%emt 0:00:20]} Qxd1+ {[%emt 0:00:12]} 10. Kxd1 {[%emt 0:00:03]} e6 {[%emt 0:00:27]} 11. Nc3 {[%emt 0:03:19]} N8d7 {[%emt 0:01:41]} 12. f4 {[%emt 0:00:53]} O-O-O 1/2-1/2

[Event "WSTCC-50 2024"]
[Site "Krakow"]
[Date "2024.07.05"]
[Round "4.14"]
[White "Kirkebo, Carl Peter"]
[Black "Motuz, Karol"]
[Result "0-1"]
[ECO "C58"]
[WhiteElo "2160"]
[BlackElo "2293"]
[Annotator "TA"]
[PlyCount "64"]
[EventDate "2024.07.01"]
[EventType "team-tourn"]
[EventCountry "POL"]
[SourceTitle "playchess.com"]
[Source "ChessBase"]
[SourceQuality "1"]
[TimeControl "40/5400+30:1800+30"]

{[%evp 14,64,35,35,41,7,32,6,36,40,61,27,61,0,-3,-2,8,-29,-27,-137,-64,-54,-68,-87,-74,-165,-141,-148,-133,-208,-193,-337,-319,-511,-500,-781,-167,-810,-802,-769,-422,-430,-390,-490,-489,-29993,-29994,-29994,-29995,-29996,-29997,-29997,-29998]} 1. e4 {[%emt 0:00:05]} e5 {[%emt 0:00:27]} 2. Nf3 {[%emt 0:00:21]} Nc6 {[%emt 0:00:08]} 3. Bc4 {[%emt 0:00:21]} Nf6 {[%emt 0:00:42][%cal Bg8f6,Bf6d5,Bd5f4][%mdl 32]} 4. Ng5 {[%emt 0:00:53]} d5 {[%emt 0:00:49]} 5. exd5 {[%emt 0:00:58]} Na5 {[%emt 0:00:28]} 6. Bb5+ {[%emt 0:00:56]} c6 {[%emt 0:00:37]} 7. dxc6 {[%emt 0:00:50]} bxc6 {[%emt 0:00:07]} 8. Bd3 {[%emt 0:07:58]} Nd5 {[%emt 0:00:47]} 9. Ne4 {[%emt 0:14:08]} (9. Nxh7 $2 Nf4 10. Be4 f5 $19) 9... f5 {[%emt 0:20:37]} 10. Ng3 {[%emt 0:04:37]} Qf6 {[%emt 0:02:35] The position is equal.} 11. Nc3 {[%emt 0:09:30]} Nf4 {[%emt 0:04:12]} 12. Bf1 {[%emt 0:07:55]} Bd6 {[%emt 0:04:35]} 13. b3 {[%emt 0:10:10]} ({White should play} 13. Nh5 $14 Qe7 14. Nxf4) 13... O-O $11 {[%emt 0:05:26] Threatening ...Bb7.} 14. Bb2 {[%emt 0:02:08]} c5 {[%emt 0:09:15]} 15. d3 {[%emt 0:16:09]} Bb7 $36 {[%emt 0:03:11][%mdl 3072] Black has compensation. Black is more active.} 16. Nce2 {[%emt 0:06:20]} (16. Qd2 $11) 16... Qg6 {[%emt 0:23:56] Black has more active pieces. The white rooks are passive.} (16... Bxg2 17. Nxf4 Bxh1 18. Nxh1 $18) (16... Nxg2+ $17 17. Bxg2 Bxg2) 17. Qd2 $1 $15 {[%emt 0:01:43]} Nc6 {[%emt 0:01:47]} (17... Nxg2+ 18. Bxg2 Bxg2 19. Rg1 $16 (19. Qxa5 Bxh1 20. Nxh1 Qh6 $16)) 18. O-O-O {[%emt 0:01:30] White is now going downhill.} Ne6 {[%emt 0:02:02]} 19. h4 {[%emt 0:05:51] [#]} (19. Nc3 $17) 19... a5 $1 $19 {[%emt 0:01:45]} 20. Nc3 {[%emt 0:01:51]} Ned4 {[%emt 0:01:40]} 21. h5 {[%emt 0:02:30]} (21. Na4 $17 {is a better defense.}) 21... Qf7 {[%emt 0:00:45] Strongly threatening ...Nb4.} 22. Nge2 {[%emt 0:00:42]} (22. Na4 {was necessary.}) 22... Nb4 {[%emt 0:00:54]} 23. Nxd4 $2 {[%emt 0:00:50]} (23. f4 h6 (23... Nbxc2 24. h6 $17) 24. Na4) 23... cxd4 {[%emt 0:00:39]} 24. Nb5 {[%emt 0:00:44]} (24. Na4 $142 Rfc8 (24... Nxa2+ 25. Kb1 $15) 25. h6) 24... Nxa2+ {[%emt 0:02:04]} 25. Kb1 {[%emt 0:00:14]} Bb4 {[%emt 0:00:55]} 26. Qe2 {[%emt 0:01:32]} Nc3+ {[%emt 0:02:19]} 27. Bxc3 {[%emt 0:00:27]} dxc3 {[%emt 0:00:54]} (27... Bxc3 28. Nxc3 dxc3 29. Qxe5 $17) 28. Qxe5 {[%emt 0:00:27][%cal Od3d4]} a4 {[%emt 0:03:29]} 29. h6 {[%emt 0:00:44] [#]} (29. Rh4 $19 f4 30. Nd4) 29... axb3 {[%emt 0:00:35] Black mates.} 30. Qxg7+ {[%emt 0:00:21]} Qxg7 {[%emt 0:00:07]} 31. hxg7 {[%emt 0:00:04]} b2 {[%emt 0:00:23][%csl Gb2][%cal Ra8a1]} 32. gxf8=Q+ {[%emt 0:00:23]} Kxf8 {[%emt 0:00:08] Weighted Error Value: White=0.62/Black=0.23 (precise) .  Mistake:       	White=8     	Black=1      Inaccurate:     	White=5     	Black=2      OK:         	White=3     	Black=7      Best:        	---       	Black=3      Strong:       	White=1     	Black=1} 0-1

[Event "WSTCC-50 2024"]
[Site "Krakow"]
[Date "2024.07.05"]
[Round "4.14"]
[White "Bhawoodien, Shabir Hussain"]
[Black "Wolf, Sylvia"]
[Result "1-0"]
[ECO "B99"]
[WhiteElo "1990"]
[BlackElo "1992"]
[Annotator "NA RC"]
[PlyCount "77"]
[EventDate "2024.07.01"]
[EventType "team-tourn"]
[EventCountry "POL"]
[SourceTitle "playchess.com"]
[Source "ChessBase"]
[SourceQuality "1"]
[TimeControl "40/5400+30:1800+30"]

1. e4 {[%emt 0:02:32]} c5 {[%emt 0:00:13]} 2. Nf3 {[%emt 0:02:18]} d6 {[%emt 0:00:05]} 3. d4 {[%emt 0:00:28]} cxd4 {[%emt 0:00:03]} 4. Nxd4 {[%emt 0:00:44]} Nf6 {[%emt 0:00:12]} 5. Nc3 {[%emt 0:00:06]} a6 {[%emt 0:00:02]} 6. Bg5 {[%emt 0:00:27]} e6 {[%emt 0:00:16]} 7. f4 {[%emt 0:04:20]} Be7 {[%emt 0:01:21]} 8. Qf3 {[%emt 0:00:40]} Qc7 {[%emt 0:00:39]} 9. O-O-O {[%emt 0:00:22]} Nbd7 {[%emt 0:00:27]} 10. g4 {[%emt 0:00:06]} b5 {[%emt 0:00:26]} 11. Bxf6 {[%emt 0:00:55]} Bxf6 {[%emt 0:00:45]} 12. Bxb5 {[%emt 0:00:19]} Rb8 {[%emt 0:11:19]} 13. Bxd7+ {[%emt 0:06:26]} Bxd7 {[%emt 0:00:23]} 14. g5 {[%emt 0:08:06]} Bxd4 {[%emt 0:08:58]} 15. Rxd4 {[%emt 0:00:01]} Qb6 {[%emt 0:00:55]} 16. Qd3 {[%emt 0:00:16]} Qxb2+ {[%emt 0:02:47]} 17. Kd2 {[%emt 0:00:02]} O-O {[%emt 0:06:05]} 18. Rb1 {[%emt 0:01:33]} Qa3 {[%emt 0:00:32]} 19. Rxb8 {[%emt 0:01:23]} Rxb8 {[%emt 0:00:32]} 20. Rxd6 {[%emt 0:00:23]} Be8 {[%emt 0:03:35]} 21. Rd8 {[%emt 0:09:03]} Rxd8 {[%emt 0:00:09]} 22. Qxd8 {[%emt 0:00:05]} Kf8 {[%emt 0:00:17]} 23. e5 {[%emt 0:07:40]} Qb4 {[%emt 0:05:52]} 24. Qd6+ {[%emt 0:00:14]} Qxd6+ {[%emt 0:00:02]} 25. exd6 {[%emt 0:00:01]} Bc6 {[%emt 0:00:14]} 26. Nd1 {[%emt 0:14:15]} Bd5 {[%emt 0:05:37]} 27. a3 {[%emt 0:02:11]} Ke8 {[%emt 0:02:57]} 28. Nb2 {[%emt 0:00:14]} Kd7 {[%emt 0:14:36]} 29. c4 {[%emt 0:00:06]} Bc6 {[%emt 0:00:23]} 30. c5 {[%emt 0:00:08]} Bb5 {[%emt 0:01:39]} 31. Kc3 {[%emt 0:08:13]} f6 {[%emt 0:11:11]} 32. Kd4 {[%emt 0:01:55]} Bc6 {[%emt 0:05:47]} 33. gxf6 {[%emt 0:00:37]} gxf6 {[%emt 0:00:01]} 34. Nd3 {[%emt 0:02:07]} Bf3 {[%emt 0:02:27]} 35. Nf2 {[%emt 0:01:47]} Kc6 {[%emt 0:08:58]} 36. Ne4 {[%emt 0:06:48]} Bxe4 {[%emt 0:00:23]} 37. Kxe4 {[%emt 0:00:01]} Kd7 {[%emt 0:00:21]} 38. f5 {[%emt 0:00:51]} e5 {[%emt 0:00:14]} 39. Kd5 {[%emt 0:00:02]} 1-0

[Event "WSTCC-50 2024"]
[Site "Krakow"]
[Date "2024.07.05"]
[Round "4.14"]
[White "Norinkeviciute, Rasa"]
[Black "Moritz, Hartmut"]
[Result "1/2-1/2"]
[ECO "A13"]
[WhiteElo "1922"]
[BlackElo "2002"]
[Annotator "NA RC"]
[PlyCount "75"]
[EventDate "2024.07.01"]
[EventType "team-tourn"]
[EventCountry "POL"]
[SourceTitle "playchess.com"]
[Source "ChessBase"]
[SourceQuality "1"]
[TimeControl "40/5400+30:1800+30"]

1. c4 {[%emt 0:00:05]} e6 {[%emt 0:00:15]} 2. Nf3 {[%emt 0:00:46]} d5 {[%emt 0:01:04]} 3. e3 {[%emt 0:02:26]} Nf6 {[%emt 0:01:49]} 4. b3 {[%emt 0:00:19]} Nbd7 {[%emt 0:02:53]} 5. Bb2 {[%emt 0:00:11]} c6 {[%emt 0:00:29]} 6. Be2 {[%emt 0:01:38]} Bd6 {[%emt 0:01:22]} 7. Qc2 {[%emt 0:04:03]} O-O {[%emt 0:02:57]} 8. Nc3 {[%emt 0:07:43]} a6 {[%emt 0:09:35]} 9. d4 {[%emt 0:05:47]} b5 {[%emt 0:06:04]} 10. a3 {[%emt 0:01:21]} bxc4 {[%emt 0:07:40]} 11. bxc4 {[%emt 0:00:18]} Rb8 {[%emt 0:01:10]} 12. O-O {[%emt 0:03:16]} Ne4 {[%emt 0:13:14]} 13. cxd5 {[%emt 0:15:26]} Nxc3 {[%emt 0:03:29]} 14. Bxc3 {[%emt 0:03:36]} cxd5 {[%emt 0:00:34]} 15. Ne5 {[%emt 0:10:34]} Qc7 {[%emt 0:12:18]} 16. f4 {[%emt 0:00:29]} f6 {[%emt 0:01:42]} 17. Nxd7 {[%emt 0:05:58]} Bxd7 {[%emt 0:01:55]} 18. Qd2 {[%emt 0:02:34]} Bb5 {[%emt 0:03:54]} 19. Ba5 {[%emt 0:03:20]} Qd7 {[%emt 0:02:26]} 20. Bb4 {[%emt 0:10:58]} Bxe2 {[%emt 0:06:26]} 21. Qxe2 {[%emt 0:00:17]} Bxb4 {[%emt 0:00:34]} 22. axb4 {[%emt 0:00:04]} Rxb4 {[%emt 0:00:21]} 23. Rxa6 {[%emt 0:03:18]} Rfb8 {[%emt 0:02:04]} 24. Ra2 {[%emt 0:01:18]} h6 {[%emt 0:05:17]} 25. Rc2 {[%emt 0:00:28]} Rb1 {[%emt 0:02:11]} 26. h3 {[%emt 0:01:17]} Rxf1+ {[%emt 0:01:00]} 27. Qxf1 {[%emt 0:00:12]} Rb3 {[%emt 0:00:18]} 28. Qe2 {[%emt 0:02:29]} Qb7 {[%emt 0:02:11]} 29. Qd2 {[%emt 0:01:23]} Kh7 {[%emt 0:02:37]} 30. Kf2 {[%emt 0:01:42]} f5 {[%emt 0:00:08]} 31. Kf3 {[%emt 0:05:52]} Qb5 {[%emt 0:00:36]} 32. Qe2 {[%emt 0:00:29]} Qb4 {[%emt 0:01:49]} 33. Kf2 {[%emt 0:03:32]} Qa3 {[%emt 0:00:44]} 34. Qd2 {[%emt 0:01:37]} Rd3 {[%emt 0:01:37]} 35. Qe2 {[%emt 0:01:09]} Qb3 {[%emt 0:00:36]} 36. Rb2 {[%emt 0:00:35]} Qc4 {[%emt 0:01:42]} 37. Rc2 {[%emt 0:00:30]} Qb3 {[%emt 0:01:36]} 38. Rb2 {[%emt 0:00:26]} 1/2-1/2